bitfinex/quotes_ETHUSD_20251107
["timestamp","ask_amount","ask_price","bid_price","bid_amount"]
[1762534327559,3.00589154,3326.8,3325.9,3.49047564]
[1762534327883,0.30108915,3326.8,3325.9,0.4838]
[1762534328216,0.005,3326.9,3325.6,3.00691398]
[1762534328359,3.0062262,3326.5,3325.5,0.1806]
[1762534328665,1.259712,3326.7,3325.5,0.1806]
[1762534328866,0.005,3326.9,3325.6,0.4838]
[1762534329259,0.4165,3326.9,3325.6,0.4838]
[1762534329496,0.4165,3326.9,3325.7,3.00685237]
[1762534329698,0.4165,3326.9,3326.1,3.00646903]
[1762534329905,0.005,3326.9,3325.6,0.4838]
[1762534330056,3.00628758,3326.4,3325.7,0.405504]
[1762534330258,0.30062876,3326.3,3325.5,0.1806]
[1762534330490,1.259712,3326.5,3325.5,0.1806]
[1762534330805,3.0064808,3326.2,3325.5,3.18763798]
[1762534330989,3.00634373,3326.3,3325.6,3.00696397]
[1762534331191,3.00626916,3326.4,3325.5,0.1806]
[1762534331356,1.259712,3326.5,3325.5,0.1806]
[1762534331557,0.005,3326.9,3326.1,3.00646776]
[1762534331758,1.264712,3326.9,3325.7,0.405504]
[1762534332003,1.264712,3326.9,3325.7,3.00680331]
[1762534332004,3.00626941,3326.4,3325.7,3.00680331]
[1762534332184,0.30062694,3326.3,3325.2,0.4838]
[1762534332355,0.4115,3326.7,3324.6,6.04842393]
[1762534332561,3.00651545,3326.2,3325.4,3.0071545]
[1762534332797,0.1055,3327.3,3325.7,3.00687889]
[1762534333005,0.4115,3327.0,3325.8,3.03680843]
[1762534333160,1.259712,3326.4,3325.9,3.00664354]
[1762534333357,1.259712,3326.8,3326.0,0.03006614]
[1762534333607,1.259712,3326.8,3325.9,0.405504]
[1762534333768,0.005,3326.9,3326.4,3.0062047]
[1762534334267,0.005,3326.9,3326.0,0.4838]
[1762534334472,0.005,3326.9,3326.1,0.43556924]
[1762534334710,0.005,3326.9,3326.8,3.18649154]
[1762534334909,0.005,3326.9,3326.8,3.67029154]
[1762534335102,0.1105,3326.9,3326.2,0.1806]
[1762534335303,0.1105,3326.9,3326.5,3.00610063]
[1762534335304,0.005,3326.9,3326.5,3.00610063]
[1762534335498,0.005,3326.9,3326.2,0.1806]
[1762534335700,0.005,3326.9,3326.4,3.00619102]
[1762534335938,0.005,3326.9,3326.2,0.1806]
[1762534336141,3.00594695,3326.8,3326.2,0.1806]
[1762534336311,3.00594695,3326.8,3326.2,3.1870334]
[1762534336512,0.005,3326.9,3326.7,3.00597182]
[1762534336808,0.005,3326.9,3326.2,0.69728334]
[1762534337131,0.005,3326.9,3325.9,3.18727356]
[1762534337332,3.01085291,3326.9,3326.0,3.00656436]
[1762534337537,3.01085291,3326.9,3325.9,3.0066428]
[1762534337741,3.00656237,3326.1,3325.2,0.4838]
[1762534337938,0.4115,3326.8,3325.2,0.6334]
[1762534337939,3.006406,3326.3,3325.2,0.6334]
[1762534338113,3.00648718,3326.2,3325.2,3.64069517]
[1762534338437,3.00663229,3326.0,3325.9,0.001]
[1762534338948,4.67784429,3326.0,3325.9,0.001]
[1762534339303,4.67784429,3326.0,3325.5,0.001]
[1762534339505,3.10807618,3325.6,3325.5,0.001]
[1762534340007,3.10807618,3325.6,3324.1,0.4888]
[1762534340008,4.42875458,3324.2,3324.1,0.005]
[1762534340305,4.42875458,3324.2,3322.2,0.4838]
[1762534340306,4.42875458,3324.2,3322.1,0.005]
[1762534340307,4.2688598,3323.2,3322.1,0.005]
[1762534340506,4.99664477,3323.2,3322.1,0.005]
[1762534340701,5.8361356,3323.2,3322.1,0.005]
[1762534341341,5.40814477,3323.2,3322.1,0.005]
[1762534341854,1.259712,3323.2,3322.6,3.00967308]
[1762534342054,1.259712,3323.2,3322.4,0.4838]
[1762534342270,1.259712,3323.2,3322.1,0.4888]
[1762534342430,1.259712,3323.2,3322.7,3.00959514]
[1762534342629,1.259712,3323.2,3322.8,3.00950192]
[1762534342827,0.1005,3323.6,3322.2,0.405504]
[1762534342828,1.259712,3323.4,3322.2,0.405504]
[1762534343244,0.1005,3323.6,3323.0,3.009325]
[1762534343424,1.259712,3323.5,3322.2,0.405504]
[1762534343625,4.26865605,3323.5,3322.7,3.0095366]
[1762534343826,0.1005,3323.6,3322.2,0.405504]
[1762534343827,0.1005,3323.6,3323.1,3.01421712]
[1762534344032,0.1005,3323.6,3323.1,0.005]
[1762534344260,0.0997,3323.6,3323.1,0.005]
[1762534344554,1.259712,3323.8,3323.1,0.005]
[1762534344755,1.68653499,3323.8,3323.1,0.005]
[1762534345055,0.4107,3323.7,3323.1,0.005]
[1762534345258,3.0091478,3323.2,3323.1,0.005]
[1762534345463,4.2688598,3323.2,3323.1,0.005]
[1762534345619,4.6795598,3323.2,3323.1,0.005]
[1762534345820,3.01005357,3322.2,3322.0,1.0]
[1762534346128,3.42075357,3322.2,3322.0,1.0]
[1762534346332,4.36938668,3322.3,3322.0,1.0]
[1762534346525,1.359412,3322.8,3322.0,1.0]
[1762534346728,0.0997,3322.8,3322.0,1.0]
[1762534347453,3.00854167,3323.9,3322.0,1.0]
[1762534347454,3.00875612,3323.7,3322.2,3.52394373]
[1762534347679,3.11421368,3323.7,3322.7,3.00958229]
[1762534347973,1.365212,3323.7,3322.5,3.00969561]
[1762534348185,1.259712,3323.5,3322.5,0.03009781]
[1762534348321,3.11421223,3323.7,3323.0,3.00926448]
[1762534348652,1.71098863,3323.7,3322.6,0.4838]
[1762534348864,1.259712,3323.6,3322.6,0.4838]
[1762534349038,0.1055,3323.7,3323.0,3.00924291]
[1762534349220,0.1055,3323.7,3322.6,0.4838]
[1762534349221,1.259712,3323.6,3323.1,3.00921447]
[1762534349419,3.00894483,3323.5,3322.6,0.4838]
[1762534349624,1.259712,3323.6,3322.6,0.4838]
[1762534349625,0.1055,3324.0,3322.8,3.00948024]
[1762534349973,0.1055,3324.0,3322.8,3.00950554]
[1762534349974,3.00889554,3323.5,3322.8,3.00950554]
[1762534350134,1.259712,3323.8,3322.6,3.00968761]
[1762534350323,3.00899819,3323.4,3322.2,0.405504]
[1762534350524,3.00892277,3323.5,3322.8,3.00946767]
[1762534350722,3.17576129,3323.7,3322.8,3.00944061]
[1762534350920,0.1670412,3323.7,3322.6,3.00969119]
[1762534351142,3.00914023,3323.3,3322.6,3.00969119]
[1762534351355,0.1670412,3323.7,3322.8,3.00945527]
[1762534351663,1.259712,3323.8,3322.4,0.405504]
[1762534351818,0.1055,3324.0,3322.4,0.405504]
[1762534351819,0.1055,3324.0,3322.6,0.555904]
[1762534352164,1.259712,3324.0,3323.4,3.00888561]
[1762534352367,3.0081614,3324.3,3323.3,0.03009057]
[1762534352598,0.31124614,3324.3,3323.3,0.1848]
[1762534352871,0.005,3324.9,3324.1,3.00826322]
[1762534352872,0.1043,3324.8,3324.1,3.00826322]
[1762534353021,0.005,3324.9,3323.8,0.405504]
[1762534353216,0.005,3324.9,3323.7,3.00865951]
[1762534353217,0.005,3324.9,3323.9,3.03856246]
[1762534353460,0.005,3324.9,3324.7,3.00773357]
[1762534353666,0.005,3324.9,3324.1,3.00833308]
[1762534353667,0.005,3324.9,3324.0,0.405504]
[1762534353973,0.005,3324.9,3323.3,3.19378113]
[1762534353974,3.00834458,3324.1,3323.3,3.19378113]
[1762534354121,3.00834458,3324.1,3323.4,3.00896672]
[1762534354122,0.1055,3324.1,3323.4,3.00896672]
[1762534354449,1.259712,3324.6,3323.8,3.00851615]
[1762534354658,0.1670412,3324.6,3323.7,0.03008695]
[1762534354973,0.1670412,3324.6,3323.5,0.4997]
[1762534354974,1.259712,3324.5,3324.0,3.00838905]
[1762534355134,3.0079538,3324.6,3323.5,0.4997]
[1762534355135,4.2676065,3324.6,3323.5,0.4997]
[1762534355472,3.00841193,3324.1,3323.4,3.00890425]
[1762534355633,1.259712,3324.8,3323.3,3.19381074]
[1762534355838,0.005,3324.9,3323.5,3.00887618]
[1762534356174,0.005,3324.9,3324.7,3.00777139]
[1762534356334,0.005,3324.9,3323.5,1.259712]
[1762534356335,0.005,3324.9,3324.6,0.1848]
[1762534356535,0.005,3324.9,3324.0,0.1504]
[1762534356777,0.007,3324.9,3324.8,3.00769971]
[1762534357172,0.007,3324.9,3323.5,7.30813593]
[1762534357371,0.007,3324.9,3323.4,3.00891894]
[1762534357372,3.01466813,3324.9,3324.2,3.00817327]
[1762534357576,3.00801857,3324.5,3323.7,3.00866762]
[1762534357777,0.007,3324.9,3323.9,3.00849255]
[1762534357987,3.0082063,3324.3,3323.6,3.00871647]
[1762534358164,3.30902693,3324.3,3323.5,3.00887618]
[1762534358497,0.30082063,3324.3,3323.8,3.00853048]
[1762534358684,0.30082063,3324.3,3323.4,0.4997]
[1762534358996,0.4478,3324.9,3323.9,3.00842572]
[1762534358997,3.00790213,3324.6,3323.9,3.00842572]
[1762534359204,1.259712,3324.5,3323.9,3.00847221]
[1762534359366,0.4478,3324.9,3324.0,3.00837702]
[1762534359554,0.4478,3324.9,3323.3,0.154664]
[1762534359555,1.259712,3324.4,3323.9,3.00845269]
[1762534359751,0.4478,3324.9,3324.0,3.00841612]
[1762534359975,3.00795116,3324.6,3323.9,3.00848355]
[1762534360255,1.259712,3324.7,3323.6,0.405504]
[1762534360256,4.26750783,3324.7,3323.6,0.405504]
[1762534360474,1.259712,3324.4,3323.7,3.00868569]
[1762534360674,3.00775289,3324.8,3323.5,0.405504]
[1762534360998,1.259712,3324.5,3323.9,3.00843731]
[1762534361167,0.007,3324.9,3323.7,3.00869512]
[1762534361370,0.007,3324.9,3324.8,3.00769971]
[1762534361585,0.007,3324.9,3324.8,3.46329971]
[1762534361768,0.007,3324.9,3324.8,3.86880371]
[1762534362173,0.002,3325.6,3325.2,3.0073379]
[1762534362396,0.002,3325.6,3325.2,3.6125379]
[1762534362968,0.002,3325.6,3325.2,4.0180419]
[1762534363167,0.002,3325.6,3325.2,5.2777539]
[1762534363893,0.002,3325.6,3325.2,5.1281539]
[1762534364093,0.002,3325.6,3325.2,5.94171299]
[1762534364815,0.002,3325.6,3325.2,3.8684419]
[1762534365159,0.002,3325.6,3325.2,0.48567337]
[1762534365360,0.002,3325.6,3324.8,0.70262005]
[1762534365361,0.002,3325.6,3324.6,0.4556]
[1762534365595,0.002,3325.6,3324.3,0.4556]
[1762534365755,0.002,3325.6,3325.2,2.97721887]
[1762534365959,0.002,3325.6,3325.1,3.00742058]
[1762534366570,0.002,3325.6,3325.2,3.03741127]
[1762534366770,0.002,3325.6,3325.1,3.00736561]
[1762534366966,0.002,3325.6,3324.4,0.80197999]
[1762534366967,0.0012,3325.3,3325.2,3.0073379]
[1762534367207,0.0012,3325.3,3325.1,3.00741545]
[1762534367376,0.0012,3325.3,3325.0,3.0074992]
[1762534367795,0.0012,3325.3,3325.2,3.0073379]
[1762534368102,0.0012,3325.3,3325.2,3.4629379]
[1762534368914,0.0012,3325.3,3325.2,3.0073379]
[1762534369216,0.0012,3325.3,3324.7,0.4556]
[1762534369374,0.0012,3325.3,3324.8,3.00768242]
[1762534369575,0.1344,3325.2,3324.2,0.4556]
[1762534369777,0.1344,3325.2,3323.7,0.4556]
[1762534369778,0.44869095,3325.2,3323.7,0.4556]
[1762534369972,0.44869095,3325.2,3323.3,1.21659016]
[1762534369973,3.00779769,3324.7,3323.6,0.4556]
[1762534370296,0.5822,3325.2,3323.6,0.4556]
[1762534370512,3.007436,3325.1,3323.6,0.4556]
[1762534370709,0.5822,3325.2,3324.5,3.00790827]
[1762534371009,0.0012,3325.3,3324.4,3.00805353]
[1762534371308,0.0012,3325.3,3324.0,0.405504]
[1762534371533,0.0012,3325.3,3324.9,3.00758913]
[1762534371816,0.44143837,3325.3,3324.4,3.0080616]
[1762534371974,0.0012,3325.3,3324.9,3.00753976]
[1762534372182,0.0012,3325.3,3325.0,3.00748335]
[1762534372389,0.0012,3325.3,3324.7,3.00771678]
[1762534372581,0.0012,3325.3,3324.4,0.405504]
[1762534372781,0.0012,3325.3,3323.5,1.259712]
[1762534373029,0.0012,3325.3,3323.7,3.00869512]
[1762534373030,0.4478,3325.2,3323.7,3.00869512]
[1762534373182,0.4478,3325.2,3323.6,0.4556]
[1762534373383,0.4478,3325.2,3324.6,3.00779047]
[1762534373600,1.259712,3325.2,3324.6,3.00779047]
[1762534373817,0.42681698,3325.1,3324.6,3.00779047]
[1762534374134,0.42681698,3325.1,3324.1,0.405504]
[1762534374349,1.259712,3325.1,3324.5,3.00788475]
[1762534374633,3.00742834,3325.1,3324.2,3.00824258]
[1762534374788,3.45533543,3325.0,3324.0,0.405504]
[1762534374987,0.34553354,3324.9,3324.2,3.00822224]
[1762534375295,0.0012,3325.3,3324.6,0.001]
[1762534375939,3.00734807,3325.2,3324.6,3.00888022]
[1762534376218,0.30085481,3325.1,3324.6,3.00888022]
[1762534376535,3.30829122,3325.1,3324.6,0.001]
[1762534376698,4.26817421,3325.3,3324.6,0.001]
[1762534376699,3.00779017,3324.7,3324.6,0.001]
[1762534377213,4.71530217,3324.7,3324.6,0.001]
[1762534378621,1.259712,3324.7,3324.6,0.001]
[1762534378812,0.0012,3325.3,3324.6,0.001]
[1762534378984,3.00735055,3325.2,3324.6,0.001]
[1762534379187,3.00845983,3325.3,3324.7,3.00778845]
[1762534379425,3.00845983,3325.3,3324.6,0.001]
[1762534379426,1.259712,3325.2,3324.8,3.00768106]
[1762534379631,0.61619302,3325.3,3325.2,3.1997379]
[1762534379632,0.0012,3325.3,3325.2,3.1997379]
[1762534380563,0.0012,3325.3,3325.2,4.09091527]
[1762534380768,0.0012,3325.3,3325.2,4.0608419]
[1762534380966,0.0012,3325.3,3325.2,4.78262955]
[1762534381729,0.0012,3325.3,3325.2,3.53482483]
[1762534382440,0.0012,3325.3,3325.2,4.02132483]
[1762534382645,0.0012,3325.3,3325.2,3.53482483]
[1762534382846,0.0012,3325.3,3325.2,3.12932083]
[1762534383171,0.0012,3325.3,3325.2,3.53482483]
[1762534383492,0.0012,3325.3,3324.6,0.001]
[1762534383689,0.0012,3325.3,3324.9,3.00752214]
[1762534383895,0.1344,3324.7,3324.6,0.001]
[1762534384100,4.71610823,3324.7,3324.6,0.001]
[1762534384258,5.63489906,3324.7,3324.6,0.001]
[1762534384464,5.20690823,3324.7,3324.6,0.001]
[1762534385115,3.0080616,3324.4,3323.1,0.006]
[1762534385416,4.26767377,3324.6,3323.1,0.1991]
[1762534385417,0.4908,3324.6,3323.1,0.1991]
[1762534385561,0.1344,3324.7,3323.2,0.4865]
[1762534385766,1.259712,3324.2,3323.7,3.00862811]
[1762534385977,0.6252,3324.7,3323.6,0.03008785]
[1762534386215,3.00812402,3324.4,3323.2,0.405504]
[1762534386527,1.259712,3324.6,3323.1,0.006]
[1762534386528,3.00888989,3323.5,3323.1,0.006]
[1762534386810,3.0091478,3323.2,3323.1,0.006]
[1762534387016,1.15195924,3323.2,3323.1,0.006]
[1762534387165,3.00855013,3323.9,3323.1,0.006]
[1762534387166,0.1026,3323.6,3323.1,0.006]
[1762534387363,1.259712,3323.5,3323.1,0.006]
[1762534387563,0.4908,3323.5,3323.1,0.006]
[1762534387762,0.1853112,3323.5,3323.1,0.006]
[1762534388002,0.1026,3323.6,3323.2,3.00906347]
[1762534388221,3.00750892,3325.1,3323.2,3.00906347]
[1762534388222,0.4908,3324.9,3323.3,0.405504]
[1762534388379,0.002,3326.0,3324.5,3.00795171]
[1762534388380,0.4908,3325.5,3324.5,3.00795171]
[1762534388588,0.1026,3325.2,3324.2,3.00823911]
[1762534388909,3.10996923,3325.2,3323.9,3.03859923]
[1762534389068,0.1026,3325.2,3324.0,1.23641432]
[1762534389263,0.1026,3325.2,3324.7,3.00778903]
[1762534389599,0.0012,3325.3,3324.2,0.405504]
[1762534389790,3.00765145,3325.3,3324.7,3.00774904]
[1762534390100,3.00765145,3325.3,3324.2,0.405504]
[1762534390101,0.0004,3325.3,3324.2,0.892004]
[1762534390271,0.002,3325.6,3324.2,0.892004]
[1762534390272,0.002,3325.6,3325.3,3.41267638]
[1762534390466,0.002,3325.6,3325.5,4.4598786]
[1762534390665,0.002,3325.6,3325.2,0.405504]
[1762534390869,0.002,3325.6,3324.8,0.1931]
[1762534391187,0.002,3325.6,3324.5,0.1931]
[1762534391401,0.002,3325.6,3325.1,3.00738619]
[1762534391605,0.002,3325.6,3324.7,0.405504]
[1762534392270,0.002,3325.6,3324.5,0.1931]
[1762534392479,3.00722823,3325.4,3324.1,0.6796]
[1762534392685,3.39985415,3325.3,3324.6,3.00786094]
[1762534392962,0.91879083,3325.5,3324.4,3.00800772]
[1762534393166,0.1026,3325.4,3324.2,3.00816567]
[1762534393376,3.00732779,3325.3,3324.4,3.0080616]
[1762534394813,3.49834762,3325.0,3324.9,0.001]
[1762534395015,4.75805962,3325.0,3324.9,0.001]
[1762534395214,5.18605045,3325.0,3324.9,0.001]
[1762534395400,5.57739965,3325.0,3324.9,0.001]
[1762534396018,5.57737082,3325.0,3324.9,0.001]
[1762534396221,2.07905203,3325.0,3324.9,0.001]
[1762534396427,1.259712,3325.0,3324.9,0.001]
[1762534397019,0.1026,3325.4,3324.9,0.001]
[1762534397318,3.00734334,3325.2,3324.9,0.001]
[1762534397521,0.1026,3325.4,3324.9,0.001]
[1762534397816,3.0068089,3325.8,3325.0,0.4865]
[1762534398000,3.00861678,3326.0,3325.4,3.00715637]
[1762534398316,3.00861678,3326.0,3325.0,0.4865]
[1762534398317,0.002,3326.0,3325.0,0.4865]
[1762534398552,3.00862328,3326.0,3325.0,0.83601626]
[1762534398733,3.01172373,3325.9,3324.9,0.001]
[1762534399043,0.4958,3325.9,3324.9,0.001]
[1762534399345,3.00712851,3325.5,3324.9,0.001]
[1762534399711,4.75950383,3325.6,3324.9,0.001]
[1762534399913,0.002,3325.6,3325.2,3.0072821]
[1762534400141,0.002,3325.6,3325.1,3.00735861]
[1762534400743,0.002,3325.6,3325.0,3.00748693]
[1762534400959,0.002,3325.6,3324.9,0.001]
[1762534401650,3.00714349,3325.5,3324.9,0.001]
[1762534401854,0.30091435,3325.4,3324.9,0.001]
[1762534402066,0.002,3325.6,3324.9,0.001]
[1762534402067,3.0074931,3325.1,3324.9,0.001]
[1762534402251,3.00736843,3325.2,3324.9,0.001]
[1762534402419,0.002,3325.6,3325.0,3.00743972]
[1762534402812,0.002,3325.6,3325.1,3.00740151]
[1762534403863,3.49794252,3325.5,3324.9,0.001]
[1762534404016,0.30308942,3325.6,3324.9,0.001]
[1762534404223,3.00899119,3325.6,3324.9,0.001]
[1762534404437,0.002,3325.6,3325.0,3.00751879]
[1762534404634,3.00709196,3325.5,3324.9,3.00858806]
[1762534404841,0.002,3325.6,3324.9,0.001]
[1762534405251,3.0070666,3325.5,3324.9,0.001]
[1762534405748,3.00751879,3325.0,3324.9,0.001]
[1762534406281,3.49831879,3325.0,3324.9,0.001]
[1762534406774,3.00751879,3325.0,3324.9,0.001]
[1762534406954,0.45261424,3325.5,3324.9,0.001]
[1762534407123,3.00751879,3325.0,3324.9,0.001]
[1762534407759,3.00744819,3325.1,3324.9,0.001]
[1762534407926,3.0073746,3325.2,3324.9,0.001]
[1762534408123,1.259712,3325.3,3324.9,0.001]
[1762534408357,0.002,3325.6,3324.9,0.001]
[1762534408527,3.00751879,3325.0,3324.9,0.001]
[1762534408851,3.30827067,3325.0,3324.9,0.001]
[1762534409262,3.79907067,3325.0,3324.9,0.001]
[1762534409563,5.05878267,3325.0,3324.9,0.001]
[1762534410225,3.00788064,3324.6,3323.1,0.006]
[1762534410431,4.40226409,3324.3,3323.1,0.006]
[1762534410670,4.40226409,3324.3,3323.2,3.00906375]
[1762534410853,4.40226409,3324.3,3323.3,0.03009057]
[1762534411027,4.40226409,3324.3,3323.2,0.4865]
[1762534411355,4.89306409,3324.3,3323.1,3.01520713]
[1762534411558,0.30075188,3325.0,3324.2,3.00924258]
[1762534411731,0.005,3325.9,3325.5,3.0070666]
[1762534412062,0.005,3325.9,3325.5,1.077704]
[1762534412268,0.005,3325.9,3325.5,0.1931]
[1762534412454,0.005,3325.9,3325.2,0.1835]
[1762534412656,0.0012,3325.6,3325.2,0.1835]
[1762534412966,0.0012,3325.6,3324.9,0.4791]
[1762534413141,0.0012,3325.6,3324.9,0.4801]
[1762534413585,0.002,3325.3,3324.9,0.4801]
[1762534413988,0.002,3325.3,3324.9,0.001]
[1762534414192,0.4574,3325.3,3324.9,0.001]
[1762534414389,4.26723079,3325.0,3324.9,0.001]
[1762534414590,4.26723079,3325.0,3324.5,0.001]
[1762534414591,3.00788064,3324.6,3324.5,0.001]
[1762534414791,4.72299264,3324.6,3324.5,0.001]
[1762534415671,3.00815209,3324.3,3324.2,0.001]
[1762534416068,5.13973398,3324.3,3324.2,0.001]
[1762534416269,5.95450839,3324.3,3324.2,0.001]
[1762534416469,3.00888721,3323.5,3323.1,0.006]
[1762534416673,1.259712,3324.2,3323.1,0.006]
[1762534416674,0.1026,3323.2,3323.1,0.006]
[1762534416993,3.00877168,3323.7,3323.1,0.006]
[1762534416994,0.41646989,3323.5,3323.1,0.006]
[1762534417331,3.00842358,3324.0,3323.1,0.006]
[1762534417495,0.35664236,3323.9,3323.1,0.006]
[1762534417659,0.41646989,3323.9,3323.1,0.006]
[1762534417862,0.4554,3323.8,3323.1,0.006]
[1762534418167,1.259712,3324.0,3323.1,0.006]
[1762534418369,1.715112,3324.0,3323.1,0.006]
[1762534418584,0.4554,3323.9,3323.1,0.006]
[1762534418783,3.00894291,3323.5,3323.1,0.006]
[1762534419096,3.00879699,3323.6,3323.1,0.006]
[1762534419295,0.1715112,3323.8,3323.1,0.006]
[1762534419867,0.4554,3323.9,3323.1,0.006]
[1762534420067,0.41646989,3323.8,3323.1,0.006]
[1762534420273,3.0086046,3323.8,3323.1,0.006]
[1762534420474,1.259712,3323.7,3323.1,0.006]
[1762534420669,0.87186989,3323.9,3323.1,0.006]
[1762534420670,1.259712,3323.8,3323.1,0.006]
[1762534420867,1.259712,3323.5,3323.1,0.2053]
[1762534421204,0.5140173,3323.7,3323.1,0.006]
[1762534421412,0.1026,3324.1,3323.1,3.21452293]
[1762534421592,1.67618189,3324.0,3323.2,3.0091478]
[1762534421779,3.11093381,3324.1,3323.1,0.2053]
[1762534421780,1.259712,3323.8,3323.1,0.2053]
[1762534421981,3.00889697,3323.5,3323.1,0.006]
[1762534422195,3.0091478,3323.2,3323.1,0.006]
[1762534422410,4.2688598,3323.2,3323.1,0.006]
[1762534422632,1.259712,3323.2,3323.1,0.006]
[1762534423319,3.00931466,3325.3,3323.1,3.21451482]
[1762534423320,1.259712,3323.9,3323.1,3.21451482]
[1762534423672,1.259712,3323.9,3323.1,0.006]
[1762534423869,1.259712,3323.6,3323.1,0.006]
[1762534424174,0.1026,3325.0,3323.1,0.6872]
[1762534424513,3.14122952,3324.7,3323.6,3.00870732]
[1762534424838,3.14122952,3324.7,3323.1,0.2053]
[1762534424839,1.259712,3324.5,3323.1,0.2053]
[1762534424993,0.1712712,3324.4,3323.2,0.4819]
[1762534425313,0.1334,3324.7,3323.3,0.405504]
[1762534425314,1.259712,3324.5,3323.3,0.405504]
[1762534425470,3.1412621,3324.7,3324.0,3.00835291]
[1762534425811,0.1026,3325.0,3323.4,0.4819]
[1762534426011,0.1026,3325.0,3323.5,0.887404]
[1762534426180,1.362312,3325.0,3323.5,0.4819]
[1762534426382,1.259712,3324.8,3323.7,3.0086049]
[1762534426608,1.259712,3324.8,3324.0,3.00834961]
[1762534426609,3.00775248,3324.8,3324.0,3.00834961]
[1762534426775,3.00788251,3324.6,3323.9,3.00848984]
[1762534427106,0.31101555,3324.9,3323.5,0.4819]
[1762534427271,3.0079746,3324.5,3323.8,3.00857257]
[1762534427478,3.00825165,3324.2,3323.5,0.4819]
[1762534427674,3.00842396,3324.0,3323.1,0.2053]
[1762534427879,3.00851409,3323.9,3323.2,3.00912529]
[1762534428111,1.712712,3324.4,3323.1,0.2053]
[1762534428318,0.1026,3325.0,3323.2,0.51199147]
[1762534428516,0.5556,3325.0,3323.2,0.51199147]
[1762534428744,0.5556,3325.0,3323.9,3.00844397]
[1762534428745,1.259712,3324.8,3323.9,3.00844397]
[1762534428914,0.1815312,3324.8,3323.4,3.00896672]
[1762534429108,4.26748456,3324.8,3324.1,3.00832532]
[1762534429309,4.26748456,3324.8,3324.2,3.00824216]
[1762534429531,1.259712,3324.8,3323.8,0.405504]
[1762534429703,1.259712,3324.8,3324.1,3.00831201]
[1762534429899,1.259712,3324.8,3324.0,3.00841035]
[1762534430105,4.26732938,3324.9,3324.2,3.00817312]
[1762534430344,0.1026,3325.0,3323.7,0.405504]
[1762534430345,0.43699294,3324.8,3323.7,0.405504]
[1762534430648,0.1046,3325.0,3323.1,0.2053]
[1762534430649,3.00794214,3324.6,3323.8,0.4819]
[1762534430806,1.364312,3325.0,3323.8,0.4819]
[1762534431012,3.00779601,3324.7,3324.0,3.00836076]
[1762534431261,1.259712,3324.9,3323.8,0.4819]
[1762534431409,0.1046,3325.0,3323.9,0.51198514]
[1762534431608,1.362312,3324.9,3323.2,0.405504]
[1762534431813,0.5556,3324.9,3323.5,0.4819]
[1762534432066,3.00800716,3324.5,3323.2,0.4819]
[1762534432413,0.002,3325.0,3324.3,3.00815209]
[1762534432583,0.002,3325.0,3324.9,3.00760925]
[1762534432757,0.002,3325.3,3325.2,3.4128419]
[1762534433058,0.002,3325.3,3325.2,4.0940419]
[1762534433459,0.002,3325.3,3325.2,4.12411527]
[1762534433668,0.002,3325.3,3325.2,4.0940419]
[1762534433972,0.002,3325.3,3325.2,4.80419226]
[1762534434677,0.002,3325.3,3325.2,4.39868826]
[1762534434969,0.002,3325.3,3325.2,0.1993]
[1762534435168,0.002,3325.3,3324.9,0.1993]
[1762534435369,0.002,3325.3,3325.1,3.00742127]
[1762534435571,0.002,3325.3,3325.0,3.48940499]
[1762534435869,0.0012,3325.3,3324.9,0.1993]
[1762534436045,0.0012,3325.3,3325.0,0.4819]
[1762534436264,0.0012,3325.3,3324.9,0.1993]
[1762534436590,0.0012,3325.3,3324.9,0.6812]
[1762534437190,0.0012,3325.3,3324.5,0.4819]
[1762534437758,0.0012,3325.3,3325.1,3.00734973]
[1762534438089,0.0012,3325.3,3324.8,3.00769907]
[1762534438399,0.0012,3325.3,3324.6,0.4819]
[1762534438582,0.0012,3325.3,3324.7,3.00771464]
[1762534439095,0.0012,3325.3,3324.4,0.1993]
[1762534439267,3.00736156,3325.2,3324.1,3.00826312]
[1762534439477,1.60586816,3325.1,3323.2,0.4819]
[1762534439778,0.79915616,3325.1,3323.3,0.4819]
[1762534440078,0.453,3325.0,3323.4,0.405504]
[1762534440278,3.00788539,3324.6,3323.9,3.00843692]
[1762534440480,3.00760925,3324.9,3323.3,3.00905726]
[1762534440481,0.1026,3324.9,3323.3,3.00905726]
[1762534440683,0.0012,3325.3,3324.0,0.405504]
[1762534440858,1.260912,3325.3,3324.8,0.1993]
[1762534441194,3.00846908,3325.3,3324.8,0.1993]
[1762534441364,3.00736005,3325.2,3324.5,3.20725065]
[1762534441566,0.42702721,3325.2,3324.6,3.00786245]
[1762534441783,0.0012,3325.3,3324.5,0.1993]
[1762534441957,0.0012,3325.3,3324.0,0.4744]
[1762534442157,0.0012,3325.3,3323.1,0.2053]
[1762534442158,0.1026,3324.1,3323.1,0.2053]
[1762534442405,0.1026,3324.1,3323.1,0.006]
[1762534442593,3.00911891,3323.3,3323.1,0.006]
[1762534442798,3.00867101,3323.8,3323.1,0.006]
[1762534442980,0.1026,3324.1,3323.5,3.00887573]
[1762534443189,3.00815529,3324.3,3323.5,3.00886965]
[1762534443397,0.1026,3324.7,3323.6,3.00878565]
[1762534443562,1.259712,3324.5,3323.6,0.4744]
[1762534443789,0.1026,3324.7,3323.7,0.4744]
[1762534444122,3.00805456,3324.5,3323.7,0.4744]
[1762534444325,0.31106546,3324.5,3323.1,0.2053]
[1762534444523,0.1026,3324.7,3323.1,0.006]
[1762534444524,3.0091478,3323.2,3323.1,0.006]
[1762534444822,4.2688598,3323.2,3323.1,0.006]
[1762534445244,1.259712,3323.2,3323.1,0.006]
[1762534445525,0.482,3324.3,3323.1,0.2053]
[1762534445683,0.482,3324.3,3323.1,0.006]
[1762534445884,3.00912892,3323.3,3323.1,0.006]